[Event "*** MasterClass Titled Tuesday Blitz"]
[Site "Chess.com"]
[Date "2017.09.05"]
[Round "10"]
[White "jk13"]
[Black "PowerThinking2650"]
[Result "0-1"]
[WhiteElo "2417"]
[BlackElo "2246"]
[TimeControl "180+2"]
[EndTime "15:27:42 PDT"]
[Termination "PowerThinking2650 won by resignation"]

1. e4 {[%clk 0:03:02]} 1... e5 {[%clk 0:03:00.4]} 2. Nf3 {[%clk 0:03:01.6]} 2...
Nc6 {[%clk 0:03:01.4]} 3. Bc4 {[%clk 0:03:03.1]} 3... Nf6 {[%clk 0:03:02]} 4. d3
{[%clk 0:03:04.6]} 4... Be7 {[%clk 0:03:03]} 5. O-O {[%clk 0:03:05]} 5... O-O
{[%clk 0:03:03.9]} 6. Re1 {[%clk 0:03:06.3]} 6... d6 {[%clk 0:03:05.1]} 7. a4
{[%clk 0:03:07.8]} 7... Be6 {[%clk 0:03:02.4]} 8. Nc3 {[%clk 0:03:08.4]} 8...
Bxc4 {[%clk 0:03:02.8]} 9. dxc4 {[%clk 0:03:09]} 9... Nd7 {[%clk 0:03:03.5]} 10.
Nd5 {[%clk 0:03:03]} 10... a5 {[%clk 0:03:00.9]} 11. c3 {[%clk 0:02:58.4]} 11...
f5 {[%clk 0:02:58.9]} 12. exf5 {[%clk 0:02:59.2]} 12... Rxf5 {[%clk 0:02:59.4]}
13. Be3 {[%clk 0:02:57.6]} 13... Rf8 {[%clk 0:02:42.5]} 14. Nd2 {[%clk
0:02:51.6]} 14... b6 {[%clk 0:02:19.8]} 15. Ne4 {[%clk 0:02:52.3]} 15... Kh8
{[%clk 0:02:06.4]} 16. b3 {[%clk 0:02:25.1]} 16... Nc5 {[%clk 0:02:06.2]} 17.
Qc2 {[%clk 0:02:16.4]} 17... Nxe4 {[%clk 0:01:55.5]} 18. Qxe4 {[%clk 0:02:16.9]}
18... Qd7 {[%clk 0:01:47.6]} 19. Rad1 {[%clk 0:02:14.6]} 19... Rae8 {[%clk
0:01:45.1]} 20. f3 {[%clk 0:01:57.8]} 20... Nd8 {[%clk 0:01:45.2]} 21. Bf2
{[%clk 0:01:52.3]} 21... Ne6 {[%clk 0:01:45]} 22. Qg4 {[%clk 0:01:49.6]} 22...
Bd8 {[%clk 0:01:42.7]} 23. Be3 {[%clk 0:01:32.8]} 23... Qf7 {[%clk 0:01:42.6]}
24. Rf1 {[%clk 0:01:32.9]} 24... Qf5 {[%clk 0:01:33.2]} 25. Qe4 {[%clk
0:01:08.5]} 25... Rf7 {[%clk 0:01:15.5]} 26. g4 {[%clk 0:01:03.1]} 26... Qxe4
{[%clk 0:01:05.2]} 27. fxe4 {[%clk 0:01:05]} 27... Ref8 {[%clk 0:01:06.3]} 28.
Rxf7 {[%clk 0:00:58.8]} 28... Rxf7 {[%clk 0:01:07.1]} 29. Kg2 {[%clk 0:01:00.1]}
29... Bg5 {[%clk 0:01:00]} 30. Kg3 {[%clk 0:00:28.4]} 30... Bxe3 {[%clk
0:00:54.5]} 31. Nxe3 {[%clk 0:00:30.3]} 31... Rf4 {[%clk 0:00:54.5]} 32. Rf1
{[%clk 0:00:26.6]} 32... Rxf1 {[%clk 0:00:34.9]} 33. Nxf1 {[%clk 0:00:27.2]}
33... Nc5 {[%clk 0:00:36.8]} 34. Nd2 {[%clk 0:00:28.2]} 34... Kg8 {[%clk
0:00:37.3]} 35. g5 {[%clk 0:00:27.8]} 35... Kf7 {[%clk 0:00:38.4]} 36. Kg4
{[%clk 0:00:29.2]} 36... Kg6 {[%clk 0:00:35.8]} 37. h4 {[%clk 0:00:30.5]} 37...
h5+ {[%clk 0:00:37]} 38. Kg3 {[%clk 0:00:26.6]} 38... Kf7 {[%clk 0:00:38]} 39.
Kf3 {[%clk 0:00:27.8]} 39... Ke6 {[%clk 0:00:39.1]} 40. Ke3 {[%clk 0:00:28.4]}
40... Kd7 {[%clk 0:00:29.4]} 41. Kf3 {[%clk 0:00:29.2]} 41... c6 {[%clk
0:00:27]} 42. Ke3 {[%clk 0:00:30.1]} 42... Kc7 {[%clk 0:00:28]} 43. Kf3 {[%clk
0:00:31.4]} 43... Kb7 {[%clk 0:00:29.2]} 44. Ke3 {[%clk 0:00:32.8]} 44... Ka6
{[%clk 0:00:30.4]} 45. Kf3 {[%clk 0:00:34.3]} 45... Ne6 {[%clk 0:00:25]} 46. Ke3
{[%clk 0:00:33.2]} 46... Nf4 {[%clk 0:00:25.3]} 47. Kf3 {[%clk 0:00:33.8]} 47...
Nd3 {[%clk 0:00:22.9]} 48. Ke3 {[%clk 0:00:33.4]} 48... Nf4 {[%clk 0:00:22]} 49.
Kf3 {[%clk 0:00:34]} 49... b5 {[%clk 0:00:20.9]} 50. cxb5+ {[%clk 0:00:32.7]}
50... cxb5 {[%clk 0:00:22.2]} 51. axb5+ {[%clk 0:00:33.8]} 51... Kxb5 {[%clk
0:00:23.7]} 52. Nb1 {[%clk 0:00:20.8]} 52... Kc5 {[%clk 0:00:17.4]} 53. Na3
{[%clk 0:00:19.5]} 53... Nd3 {[%clk 0:00:16.3]} 54. Nb1 {[%clk 0:00:14.8]} 54...
Nc1 {[%clk 0:00:12.5]} 55. Nd2 {[%clk 0:00:16.1]} 55... g6 {[%clk 0:00:10.5]}
56. Ke3 {[%clk 0:00:17.3]} 56... Kb5 {[%clk 0:00:08.1]} 57. Kf3 {[%clk
0:00:17.2]} 57... Nd3 {[%clk 0:00:08.7]} 58. Ke3 {[%clk 0:00:18.4]} 58... Nf4
{[%clk 0:00:09.7]} 59. Kf3 {[%clk 0:00:19.2]} 59... Kc5 {[%clk 0:00:10.4]} 60.
Nb1 {[%clk 0:00:18.6]} 60... d5 {[%clk 0:00:10.5]} 61. exd5 {[%clk 0:00:19.8]}
61... Kxd5 {[%clk 0:00:10.2]} 62. Nd2 {[%clk 0:00:21.1]} 62... Nd3 {[%clk
0:00:10.3]} 63. Ke3 {[%clk 0:00:21.5]} 63... Nc5 {[%clk 0:00:10.3]} 64. c4+
{[%clk 0:00:19.5]} 64... Ke6 {[%clk 0:00:10.2]} 65. Kf3 {[%clk 0:00:20]} 65...
Kf5 {[%clk 0:00:11.1]} 66. Kg3 {[%clk 0:00:19.6]} 66... e4 {[%clk 0:00:11.8]}
67. Kf2 {[%clk 0:00:19.5]} 67... Kf4 {[%clk 0:00:11.8]} 68. Ke2 {[%clk
0:00:20.2]} 68... Nd3 {[%clk 0:00:06.7]} 69. Nf1 {[%clk 0:00:19.2]} 69... Nc1+
{[%clk 0:00:07.1]} 70. Kd2 {[%clk 0:00:19.6]} 70... Nxb3+ {[%clk 0:00:08.6]} 71.
Kc3 {[%clk 0:00:21.5]} 71... Nc5 {[%clk 0:00:09.4]} 72. Kd4 {[%clk 0:00:22.6]}
72... Nb3+ {[%clk 0:00:08.8]} 73. Kc3 {[%clk 0:00:23.8]} 73... Nc5 {[%clk
0:00:09.5]} 74. Kd4 {[%clk 0:00:25.4]} 74... Nd7 {[%clk 0:00:09.2]} 75. Ne3
{[%clk 0:00:25.3]} 75... a4 {[%clk 0:00:10.1]} 76. Nd5+ {[%clk 0:00:25.3]} 76...
Kf3 {[%clk 0:00:11.1]} 77. Nc3 {[%clk 0:00:24.6]} 77... a3 {[%clk 0:00:12]} 78.
c5 {[%clk 0:00:23.8]} 78... Nxc5 {[%clk 0:00:10.1]} 79. Kxc5 {[%clk 0:00:25.7]}
79... e3 {[%clk 0:00:11.4]} 80. Kb4 {[%clk 0:00:27.4]} 80... e2 {[%clk
0:00:11.9]} 81. Nxe2 {[%clk 0:00:29]} 81... Kxe2 {[%clk 0:00:13.3]} 82. Kxa3
{[%clk 0:00:30.9]} 82... Kf3 {[%clk 0:00:14.7]} 83. Kb4 {[%clk 0:00:32.8]} 83...
Kg4 {[%clk 0:00:16.2]} 84. Kc4 {[%clk 0:00:34.7]} 84... Kxh4 {[%clk 0:00:17.6]}
85. Kd4 {[%clk 0:00:36.6]} 85... Kxg5 {[%clk 0:00:19.2]} 86. Ke4 {[%clk
0:00:38.5]} 86... Kg4 {[%clk 0:00:20.8]} 0-1

[Event "*** MasterClass Titled Tuesday Blitz"]
[Site "Chess.com"]
[Date "2017.09.05"]
[Round "10"]
[White "champ2005"]
[Black "chessking2151"]
[Result "1/2-1/2"]
[WhiteElo "2487"]
[BlackElo "2359"]
[TimeControl "180+2"]
[EndTime "15:27:43 PDT"]
[Termination "Game drawn by agreement"]

1. e4 {[%clk 0:03:01]} 1... e5 {[%clk 0:02:59.8]} 2. Nf3 {[%clk 0:03:01.5]} 2...
Nc6 {[%clk 0:03:00.9]} 3. Bb5 {[%clk 0:03:02.5]} 3... a6 {[%clk 0:03:01.1]} 4.
Ba4 {[%clk 0:03:03.7]} 4... Nf6 {[%clk 0:03:01.8]} 5. O-O {[%clk 0:03:04.7]}
5... b5 {[%clk 0:02:59.1]} 6. Bb3 {[%clk 0:03:05.3]} 6... Bb7 {[%clk 0:03:00.3]}
7. c3 {[%clk 0:02:57.9]} 7... Nxe4 {[%clk 0:03:00.8]} 8. Re1 {[%clk 0:02:51.4]}
8... d5 {[%clk 0:02:59.1]} 9. d3 {[%clk 0:02:50]} 9... Nc5 {[%clk 0:02:56.8]}
10. Nxe5 {[%clk 0:02:50.7]} 10... Nxe5 {[%clk 0:02:57.6]} 11. Rxe5+ {[%clk
0:02:51.6]} 11... Ne6 {[%clk 0:02:57.5]} 12. d4 {[%clk 0:02:50.4]} 12... Bd6
{[%clk 0:02:46]} 13. Re1 {[%clk 0:02:40.5]} 13... O-O {[%clk 0:02:46.2]} 14. Nd2
{[%clk 0:02:41.5]} 14... c5 {[%clk 0:02:22.4]} 15. dxc5 {[%clk 0:02:29.9]} 15...
Bxc5 {[%clk 0:02:08]} 16. Nf3 {[%clk 0:02:29.8]} 16... d4 {[%clk 0:01:43.5]} 17.
Ne5 {[%clk 0:01:45.5]} 17... dxc3 {[%clk 0:01:14.2]} 18. bxc3 {[%clk 0:01:44.1]}
18... Qxd1 {[%clk 0:00:59.3]} 19. Rxd1 {[%clk 0:01:42.3]} 19... Rfd8 {[%clk
0:00:57.8]} 20. Bb2 {[%clk 0:01:40.8]} 20... a5 {[%clk 0:00:13.1]} 21. a3 {[%clk
0:01:38.8]} 21... Rxd1+ {[%clk 0:00:11.2]} 22. Rxd1 {[%clk 0:01:37.7]} 22... Rd8
{[%clk 0:00:12]} 23. Rxd8+ {[%clk 0:01:33.7]} 23... Nxd8 {[%clk 0:00:12.7]} 24.
a4 {[%clk 0:01:32.7]} 24... bxa4 {[%clk 0:00:13]} 25. Bxa4 {[%clk 0:01:34]}
25... Bd6 {[%clk 0:00:13.4]} 26. Nc4 {[%clk 0:01:28.7]} 26... Bc7 {[%clk
0:00:14.3]} 27. Bc1 {[%clk 0:01:27.7]} 27... Ne6 {[%clk 0:00:15.5]} 28. Be3
{[%clk 0:01:28]} 28... Bd5 {[%clk 0:00:14.9]} 29. Nd2 {[%clk 0:01:22.5]} 29...
Nf4 {[%clk 0:00:08]} 30. c4 {[%clk 0:00:58.6]} 30... Be6 {[%clk 0:00:07.6]} 31.
c5 {[%clk 0:00:52.2]} 31... Ne2+ {[%clk 0:00:08.7]} 32. Kf1 {[%clk 0:00:52.4]}
32... Nc3 {[%clk 0:00:10.4]} 33. Bc2 {[%clk 0:00:48.5]} 33... a4 {[%clk
0:00:09.6]} 34. Bd4 {[%clk 0:00:49.7]} 34... Nb5 {[%clk 0:00:11]} 35. Ba1 {[%clk
0:00:50.3]} 35... a3 {[%clk 0:00:10.9]} 36. Bd3 {[%clk 0:00:50.1]} 36... Na7
{[%clk 0:00:09.3]} 37. Be4 {[%clk 0:00:40.3]} 37... Nb5 {[%clk 0:00:09.7]} 38.
Ke2 {[%clk 0:00:39.7]} 38... f5 {[%clk 0:00:09.4]} 39. Bd3 {[%clk 0:00:39.6]}
39... Na7 {[%clk 0:00:11]} 40. g3 {[%clk 0:00:37.9]} 40... Nc6 {[%clk
0:00:12.2]} 41. f4 {[%clk 0:00:38.7]} 41... Kf7 {[%clk 0:00:13.3]} 42. Nf3
{[%clk 0:00:36.2]} 42... h6 {[%clk 0:00:12.9]} 43. Kd2 {[%clk 0:00:35.8]} 43...
Nb4 {[%clk 0:00:14.3]} 44. Bb5 {[%clk 0:00:31.8]} 44... Bd5 {[%clk 0:00:13.9]}
45. Nd4 {[%clk 0:00:32.8]} 45... g6 {[%clk 0:00:13.3]} 46. Bc3 {[%clk
0:00:31.3]} 46... Na2 {[%clk 0:00:14.8]} 47. Ba1 {[%clk 0:00:30.8]} 47... Ba5+
{[%clk 0:00:15.5]} 48. Kd3 {[%clk 0:00:27.7]} 48... Nb4+ {[%clk 0:00:16.9]} 49.
Ke2 {[%clk 0:00:28.8]} 49... Ke7 {[%clk 0:00:16.7]} 50. h3 {[%clk 0:00:28.7]}
50... Na2 {[%clk 0:00:15.3]} 51. Kd3 {[%clk 0:00:22.7]} 51... Nc1+ {[%clk
0:00:16.1]} 52. Kc2 {[%clk 0:00:23.7]} 52... Na2 {[%clk 0:00:15.7]} 53. g4
{[%clk 0:00:22.2]} 53... Nb4+ {[%clk 0:00:16.7]} 54. Kd1 {[%clk 0:00:22.8]}
54... Be4 {[%clk 0:00:15.9]} 55. gxf5 {[%clk 0:00:22.3]} 55... gxf5 {[%clk
0:00:17.8]} 56. Bc3 {[%clk 0:00:17]} 56... a2 {[%clk 0:00:18.4]} 57. Ba1 {[%clk
0:00:16.6]} 57... Bc7 {[%clk 0:00:13.4]} 58. Ne2 {[%clk 0:00:16]} 58... Nd3
{[%clk 0:00:12.4]} 59. Bxd3 {[%clk 0:00:16.5]} 59... Bxd3 {[%clk 0:00:13.8]} 60.
Nc1 {[%clk 0:00:17.3]} 60... Be4 {[%clk 0:00:14.7]} 61. Nxa2 {[%clk 0:00:18.1]}
61... Bxf4 {[%clk 0:00:16]} 62. Nb4 {[%clk 0:00:17.4]} 62... Be3 {[%clk
0:00:17.3]} 63. c6 {[%clk 0:00:17.5]} 63... Bc5 {[%clk 0:00:18.3]} 64. Bc3
{[%clk 0:00:18.7]} 64... Kd6 {[%clk 0:00:18.1]} 65. Bd2 {[%clk 0:00:18.4]} 65...
h5 {[%clk 0:00:18.6]} 66. Bf4+ {[%clk 0:00:18.9]} 66... Ke7 {[%clk 0:00:20]} 67.
c7 {[%clk 0:00:20.2]} 67... Kd7 {[%clk 0:00:21.5]} 68. Na2 {[%clk 0:00:18.1]}
68... Bb6 {[%clk 0:00:22.4]} 69. Nc3 {[%clk 0:00:16.9]} 69... Bc6 {[%clk
0:00:23.2]} 70. Ne2 {[%clk 0:00:17.2]} 70... Bxc7 {[%clk 0:00:23.2]} 71. Bxc7
{[%clk 0:00:18]} 71... Kxc7 {[%clk 0:00:25.2]} 72. Nd4 {[%clk 0:00:19.5]} 72...
Be4 {[%clk 0:00:25.8]} 73. Ke2 {[%clk 0:00:20.8]} 73... Kd6 {[%clk 0:00:27]} 74.
Ke3 {[%clk 0:00:22.1]} 74... Ke5 {[%clk 0:00:28.5]} 75. Ne2 {[%clk 0:00:23.3]}
75... h4 {[%clk 0:00:29.6]} 76. Nf4 {[%clk 0:00:24.5]} 76... Kf6 {[%clk
0:00:31]} 77. Kf2 {[%clk 0:00:22.6]} 77... Kg5 {[%clk 0:00:31.7]} 78. Ke3 {[%clk
0:00:24]} 78... Ba8 {[%clk 0:00:31.3]} 79. Ne6+ {[%clk 0:00:25.2]} 79... Kf6
{[%clk 0:00:32.6]} 80. Nf4 {[%clk 0:00:26.5]} 80... Be4 {[%clk 0:00:34.1]} 81.
Kf2 {[%clk 0:00:26.7]} 81... Kg5 {[%clk 0:00:35.2]} 82. Ke3 {[%clk 0:00:27.9]}
82... Kf6 {[%clk 0:00:32.2]} 83. Kf2 {[%clk 0:00:28.9]} 83... Bc6 {[%clk
0:00:28.9]} 84. Ke3 {[%clk 0:00:29.3]} 1/2-1/2